bitfinex/quotes_BTCUSD_20250101
["timestamp","ask_amount","ask_price","bid_price","bid_amount"]
[1735736930507,0.338895,93943.0,93942.0,0.21215692]
[1735736931545,0.338895,93943.0,93942.0,0.11215692]
[1735736933541,0.338895,93943.0,93942.0,0.0081706]
[1735736935385,0.337895,93943.0,93942.0,0.0021706]
[1735736935567,0.337895,93943.0,93942.0,0.0001706]
[1735736935953,0.338895,93943.0,93942.0,0.0081706]
[1735736936552,0.337895,93943.0,93942.0,0.0021706]
[1735736936881,0.338895,93943.0,93942.0,0.0081706]
[1735736937294,0.338895,93943.0,93942.0,0.0061706]
[1735736937751,0.338895,93943.0,93942.0,0.0081706]
[1735736938185,0.3389803,93943.0,93942.0,0.0061706]
[1735736938529,0.3379803,93943.0,93942.0,0.0021706]
[1735736938911,0.3379803,93943.0,93942.0,0.0011706]
[1735736939118,0.3379803,93943.0,93942.0,0.0001706]
[1735736939314,0.3379803,93943.0,93942.0,0.0021706]
[1735736939563,0.3379803,93943.0,93942.0,0.0071706]
[1735736939809,0.3379803,93943.0,93942.0,0.0021706]
[1735736939992,0.3609803,93943.0,93942.0,6e-07]
[1735736941827,0.3629803,93943.0,93942.0,6e-07]
[1735736942207,0.362913,93935.0,93934.0,0.00031943]
[1735736944308,0.363913,93935.0,93934.0,0.00031943]
[1735736944727,0.363913,93935.0,93934.0,4.3e-07]
[1735736944982,0.15,93934.0,93932.0,3e-08]
[1735736945191,0.362917,93933.0,93932.0,3e-08]
[1735736946544,0.362917,93933.0,93932.0,0.00100003]
[1735736948627,0.362917,93933.0,93932.0,3e-08]
[1735736948835,0.364917,93933.0,93932.0,3e-08]
[1735736949332,0.36294,93923.0,93919.0,0.0817]
[1735736950718,0.36294,93923.0,93922.0,0.0021706]
[1735736952456,0.36294,93923.0,93922.0,0.0001706]
[1735736952883,0.36294,93923.0,93922.0,0.0021706]
[1735736955832,0.36294,93923.0,93922.0,6e-07]
[1735736956990,0.36294,93923.0,93908.0,0.0778706]
[1735736956991,0.15,93922.0,93908.0,0.0778706]
[1735736957781,0.15,93922.0,93921.0,6e-07]
[1735736958185,0.173,93922.0,93921.0,6e-07]
[1735736958412,0.15,93920.0,93918.0,2e-07]
[1735736959367,0.38951669,93920.0,93918.0,2e-07]
[1735736959695,0.362949,93919.0,93918.0,2e-07]
[1735736961313,0.362965,93912.0,93911.0,8e-07]
[1735736961516,0.385965,93912.0,93911.0,8e-07]
[1735736962120,0.362972,93909.0,93908.0,4e-07]
[1735736962332,0.385972,93909.0,93908.0,9.9e-07]
[1735736963286,0.48995832,93909.0,93908.0,9.9e-07]
[1735736963529,0.48995832,93909.0,93900.0,5.1e-05]
[1735736963530,0.36299,93901.0,93900.0,9.9e-07]
[1735736963721,0.38599,93901.0,93900.0,9.9e-07]
[1735736964204,0.46149,93901.0,93900.0,9.9e-07]
[1735736965313,0.023,93893.0,93888.0,0.22491514]
[1735736965511,0.023,93893.0,93888.0,0.22496471]
[1735736966340,0.363017,93889.0,93888.0,0.18236071]
[1735736966544,0.363017,93889.0,93888.0,0.12045471]
[1735736966748,0.363017,93889.0,93888.0,0.09915271]
[1735736966941,0.363017,93889.0,93888.0,0.03324671]
[1735736967189,0.363017,93889.0,93888.0,0.01194471]
[1735736967659,0.886017,93889.0,93888.0,0.01194471]
[1735736967871,0.886017,93889.0,93888.0,7.1e-07]
[1735736968700,0.99000332,93889.0,93888.0,7.1e-07]
[1735736968905,1.17540302,93889.0,93888.0,7.1e-07]
[1735736969313,1.17240302,93889.0,93888.0,7.1e-07]
[1735736969516,1.17540302,93889.0,93888.0,7.1e-07]
[1735736969710,0.363056,93872.0,93871.0,7.1e-07]
[1735736969921,0.386056,93872.0,93871.0,0.00049709]
[1735736970721,0.363056,93872.0,93871.0,0.00049709]
[1735736970923,0.363056,93872.0,93871.0,0.07809709]
[1735736971336,0.363056,93872.0,93871.0,0.07709709]
[1735736971673,0.368056,93872.0,93871.0,0.07709709]
[1735736972178,0.868056,93872.0,93871.0,0.07709709]
[1735736972967,0.889056,93872.0,93871.0,0.00049709]
[1735736973124,0.891056,93872.0,93871.0,0.00049709]
[1735736973326,0.678,93872.0,93871.0,0.00058249]
[1735736973938,0.891056,93872.0,93871.0,0.00058249]
[1735736974191,0.889056,93872.0,93871.0,0.00058249]
[1735736974388,0.888056,93872.0,93871.0,0.00058249]
[1735736975246,0.867056,93872.0,93871.0,0.00058249]
[1735736975922,0.865056,93872.0,93871.0,0.00058249]
[1735736976284,5.709056,93872.0,93871.0,4.9e-07]
[1735736976507,0.890056,93872.0,93871.0,4.9e-07]
[1735736976726,0.888056,93872.0,93871.0,4.9e-07]
[1735736977065,0.865056,93872.0,93871.0,4.9e-07]
[1735736977223,0.867056,93872.0,93871.0,4.9e-07]
[1735736977427,0.865056,93872.0,93871.0,4.9e-07]
[1735736977631,0.863056,93872.0,93871.0,4.9e-07]
[1735736977883,0.866056,93872.0,93871.0,4.9e-07]
[1735736978087,0.863056,93872.0,93871.0,4.9e-07]
[1735736978607,0.866056,93872.0,93871.0,4.9e-07]
[1735736979226,0.868056,93872.0,93871.0,4.9e-07]
[1735736979686,0.868056,93872.0,93871.0,0.07950049]
[1735736980596,0.866056,93872.0,93871.0,0.07950049]
[1735736980796,0.864056,93872.0,93871.0,0.07950049]
[1735736981199,0.864056,93872.0,93871.0,4.9e-07]
[1735736982354,0.863056,93872.0,93871.0,4.9e-07]
[1735736982791,0.864056,93872.0,93871.0,4.9e-07]
[1735736983430,0.863056,93872.0,93871.0,4.9e-07]
[1735736984189,0.863056,93872.0,93871.0,0.00100049]
[1735736985359,0.863056,93872.0,93871.0,4.9e-07]
[1735736985757,0.8632268,93872.0,93871.0,0.00100049]
[1735736990366,0.60271498,93872.0,93871.0,0.00100049]
[1735736991342,0.71322598,93872.0,93871.0,0.00100049]
[1735736992749,0.86322598,93872.0,93871.0,0.00100049]
[1735736993745,0.363071,93865.0,93864.0,0.07409821]
[1735736993943,0.363071,93865.0,93864.0,0.07417759]
[1735736995277,0.363071,93865.0,93864.0,0.07817759]
[1735736995509,0.3898483,93865.0,93864.0,0.00107938]
[1735736995880,0.386071,93865.0,93864.0,0.00407938]
[1735736996109,0.386071,93865.0,93864.0,0.00507938]
[1735736996733,0.363071,93865.0,93864.0,0.00407938]
[1735736997120,0.365071,93865.0,93864.0,0.00416468]
[1735736997331,0.365071,93865.0,93864.0,0.00016468]
[1735736997332,0.388071,93865.0,93864.0,0.00016468]
[1735736997727,0.392071,93865.0,93864.0,0.00016468]
[1735736998105,0.396071,93865.0,93864.0,0.00016468]
[1735736998303,0.394071,93865.0,93864.0,0.00016468]
[1735736998611,0.396071,93865.0,93864.0,0.00016468]
[1735737001874,0.396071,93865.0,93864.0,6.8e-07]
[1735737002091,1.10385468,93865.0,93864.0,6.8e-07]
[1735737002914,1.10005702,93865.0,93864.0,6.8e-07]
[1735737004254,1.00005732,93865.0,93864.0,6.8e-07]
[1735737004454,1.10005702,93865.0,93864.0,6.8e-07]
[1735737006705,0.363081,93861.0,93860.0,2.8e-07]
[1735737006891,0.59006702,93861.0,93860.0,2.8e-07]
[1735737007091,0.59388176,93861.0,93860.0,2.8e-07]
[1735737007899,0.59588176,93861.0,93860.0,2.8e-07]
[1735737008139,0.59206702,93861.0,93860.0,2.8e-07]
[1735737008339,0.59406702,93861.0,93860.0,2.8e-07]
[1735737010616,0.59406702,93861.0,93850.0,8.8e-07]
[1735737010617,0.386103,93851.0,93850.0,8.8e-07]
[1735737010747,0.386103,93851.0,93850.0,2.6e-07]
[1735737011941,0.397103,93851.0,93850.0,0.00100026]
[1735737012145,0.397103,93851.0,93850.0,2.6e-07]
[1735737012349,0.363108,93849.0,93848.0,8.6e-07]
[1735737013283,3.898,93848.0,93837.0,0.073121]
[1735737013486,0.15,93838.0,93837.0,0.07322159]
[1735737015220,0.151,93838.0,93837.0,0.07322159]
[1735737015664,0.651,93838.0,93837.0,0.07322159]
[1735737016306,0.651,93838.0,93837.0,0.07047243]
[1735737016443,0.651,93838.0,93837.0,0.32185875]
[1735737016444,0.501,93838.0,93837.0,0.32185875]
[1735737016655,0.501,93838.0,93837.0,0.35406463]
[1735737017098,0.5,93838.0,93837.0,0.35406463]
[1735737017424,0.5,93838.0,93837.0,0.32185875]
[1735737017609,0.501,93838.0,93837.0,0.32185875]
[1735737018065,0.5,93838.0,93837.0,0.32285875]
[1735737018766,0.501,93838.0,93837.0,0.32485875]
[1735737019112,0.501,93838.0,93837.0,0.32685875]
[1735737020048,0.5,93838.0,93837.0,0.32385875]
[1735737020254,0.50083161,93838.0,93837.0,0.32685875]
[1735737021467,0.50099961,93838.0,93837.0,0.32685875]
[1735737021869,0.001,93838.0,93837.0,0.32694405]
[1735737022287,0.0011706,93838.0,93837.0,0.32694405]
[1735737028150,0.0001706,93838.0,93837.0,0.32194405]
[1735737028390,0.0011706,93838.0,93837.0,0.32494405]
[1735737028576,0.0011706,93838.0,93837.0,0.32694405]
[1735737029072,0.0011706,93838.0,93837.0,0.32494405]
[1735737029640,0.0001706,93838.0,93837.0,0.32194405]
[1735737029840,0.0001706,93838.0,93837.0,0.32494405]
[1735737030042,0.0011706,93838.0,93837.0,0.32484405]
[1735737030288,0.0011706,93838.0,93837.0,0.32184405]
[1735737030495,0.0011706,93838.0,93837.0,0.32784405]
[1735737030711,0.0021706,93838.0,93837.0,0.32784405]
[1735737030883,0.0011706,93838.0,93837.0,0.32184405]
[1735737031085,0.0021706,93838.0,93837.0,0.32784405]
[1735737032012,0.0021706,93838.0,93837.0,0.32484405]
[1735737032217,0.0021706,93838.0,93837.0,0.32784405]
[1735737032622,0.0001706,93838.0,93837.0,0.32484405]
[1735737033051,0.0011706,93838.0,93837.0,0.32784405]
[1735737033283,0.0001706,93838.0,93837.0,0.32484405]
[1735737033481,0.0001706,93838.0,93837.0,0.32184405]
[1735737033687,0.0011706,93838.0,93837.0,0.32484405]
[1735737034249,0.0021706,93838.0,93837.0,0.32484405]
[1735737034448,0.0021706,93838.0,93837.0,0.32184405]
[1735737034449,0.0011706,93838.0,93837.0,0.32184405]
[1735737034664,0.0011706,93838.0,93837.0,0.32484405]
[1735737035065,0.0011706,93838.0,93837.0,0.32184405]
[1735737035467,0.0011706,93838.0,93837.0,0.32484405]
[1735737035915,0.0021706,93838.0,93837.0,0.32784405]
[1735737036647,0.0001706,93838.0,93837.0,0.32484405]
[1735737036826,0.0001706,93838.0,93837.0,0.32184405]
[1735737037038,0.0011706,93838.0,93837.0,0.32784405]
[1735737037613,0.0011706,93838.0,93837.0,0.32484405]
[1735737037820,0.0001706,93838.0,93837.0,0.32184405]
[1735737038404,0.0001706,93838.0,93837.0,0.32584405]
[1735737039087,0.0011706,93838.0,93837.0,0.32884405]
[1735737039295,0.0001706,93838.0,93837.0,0.32584405]
[1735737039753,0.0011706,93838.0,93837.0,0.32884405]
[1735737041598,0.0011706,93838.0,93837.0,0.32484405]
[1735737042098,0.0001706,93838.0,93837.0,0.32184405]
[1735737042607,0.0011706,93838.0,93837.0,0.32484405]
[1735737042928,0.0011706,93838.0,93837.0,0.32784405]
[1735737043456,0.0011706,93838.0,93837.0,0.32484405]
[1735737043675,0.0011706,93838.0,93837.0,0.32884405]
[1735737045818,0.0001706,93838.0,93837.0,0.32584405]
[1735737046040,0.0011706,93838.0,93837.0,0.33484405]
[1735737046603,0.0011706,93838.0,93837.0,0.33084405]
[1735737047028,0.0021706,93838.0,93837.0,0.33584405]
[1735737055975,0.0021706,93838.0,93837.0,0.28844405]
[1735737062742,0.0021706,93838.0,93837.0,0.35914405]
[1735737063088,0.0021706,93838.0,93837.0,0.45914405]
[1735737063716,0.0011706,93838.0,93837.0,0.45414405]
[1735737063937,0.0011706,93838.0,93837.0,0.45214405]
[1735737064118,0.0021706,93838.0,93837.0,0.66513037]
[1735737064327,0.0021706,93838.0,93837.0,0.76067641]
[1735737066492,0.0021706,93838.0,93837.0,0.65669009]
[1735737067331,0.0021706,93838.0,93837.0,0.56114405]
[1735737069815,0.213058,93871.0,93868.0,0.1]
[1735737070076,0.21306,93870.0,93869.0,0.10398632]
[1735737071305,0.21306,93870.0,93869.0,0.20398632]
[1735737072404,0.21306,93870.0,93869.0,0.20598632]
[1735737073082,0.21306,93870.0,93869.0,0.10598632]
[1735737073297,0.34226,93870.0,93869.0,0.10598632]
[1735737073424,0.34226,93870.0,93869.0,0.002]
[1735737073629,0.213063,93869.0,93866.0,0.1]
[1735737073830,0.213063,93869.0,93867.0,0.10398632]
[1735737074232,0.213074,93864.0,93862.0,0.1]
[1735737074443,0.213074,93864.0,93863.0,0.10398632]
[1735737074444,0.363074,93864.0,93863.0,0.10398632]
[1735737076188,0.363074,93864.0,93863.0,0.10498632]
[1735737076595,0.363074,93864.0,93863.0,0.10398632]
[1735737076990,0.363074,93864.0,93863.0,0.10598632]
[1735737077363,0.363074,93864.0,93863.0,0.10398632]
[1735737078615,0.213069,93866.0,93863.0,0.10598632]
[1735737078817,0.14536643,93868.0,93863.0,0.10498632]
[1735737079025,0.1292,93870.0,93863.0,0.10498632]
[1735737079276,0.1292,93870.0,93863.0,0.10798632]
[1735737079481,0.1292,93870.0,93863.0,0.10398632]
[1735737079691,0.1292,93870.0,93863.0,0.10407162]
[1735737079692,0.213074,93864.0,93863.0,0.10407162]
[1735737079890,0.213074,93864.0,93863.0,0.10607162]
[1735737080102,0.213074,93864.0,93863.0,0.10407162]
[1735737081905,0.213074,93864.0,93863.0,0.10707162]
[1735737083253,0.213074,93864.0,93863.0,0.10807162]
[1735737083913,0.213074,93864.0,93863.0,0.10707162]
[1735737085153,0.213074,93864.0,93863.0,0.10407162]
[1735737085538,0.213074,93864.0,93863.0,0.10507162]
[1735737085737,0.213074,93864.0,93863.0,0.10407162]
[1735737086077,0.213074,93864.0,93863.0,0.10607162]
[1735737087306,0.213074,93864.0,93863.0,0.0020853]
[1735737087307,0.363074,93864.0,93863.0,0.0020853]
[1735737088461,0.363074,93864.0,93863.0,8.53e-05]
[1735737088675,0.366074,93864.0,93863.0,8.53e-05]
[1735737088879,0.363074,93864.0,93863.0,8.53e-05]
[1735737089136,0.365074,93864.0,93863.0,8.53e-05]
[1735737089303,0.367074,93864.0,93863.0,8.53e-05]
[1735737089512,0.365074,93864.0,93863.0,8.53e-05]
[1735737089977,0.367074,93864.0,93863.0,8.53e-05]
[1735737091945,0.365074,93864.0,93863.0,8.53e-05]
[1735737092408,0.367074,93864.0,93863.0,8.53e-05]
[1735737093180,0.365074,93864.0,93863.0,8.53e-05]
[1735737093724,0.363074,93864.0,93863.0,8.53e-05]
[1735737093856,0.365074,93864.0,93863.0,8.53e-05]
[1735737094479,0.450374,93864.0,93863.0,3e-07]
[1735737094676,0.52553266,93864.0,93863.0,3e-07]
[1735737094875,0.54853266,93864.0,93863.0,3e-07]
[1735737095519,0.72459409,93864.0,93863.0,3e-07]
[1735737095729,0.72459409,93864.0,93837.0,8.53e-05]
[1735737095730,0.363133,93838.0,93837.0,8.53e-05]
[1735737095930,0.363133,93838.0,93837.0,0.00018589]
[1735737097176,0.366133,93838.0,93837.0,0.00018589]
[1735737098015,0.370133,93838.0,93837.0,0.00018589]
[1735737098234,0.366133,93838.0,93837.0,0.00018589]
[1735737098439,0.363133,93838.0,93837.0,0.00018589]
[1735737098659,0.369133,93838.0,93837.0,0.00018589]
[1735737101082,0.369033,93838.0,93837.0,0.00018589]
[1735737116130,0.369133,93838.0,93837.0,0.00018589]
[1735737116769,0.3693036,93838.0,93837.0,0.00018589]
[1735737118436,0.3633036,93838.0,93837.0,0.00018589]
[1735737118678,0.3663036,93838.0,93837.0,0.00018589]
[1735737120927,0.1532706,93838.0,93837.0,0.08158589]
[1735737121129,0.0032706,93838.0,93837.0,0.3522508]
[1735737121346,0.0032706,93838.0,93837.0,0.33407221]
[1735737121921,0.0002706,93838.0,93837.0,0.33407221]
[1735737122287,0.0022706,93838.0,93837.0,0.33907221]
[1735737123114,0.0012706,93838.0,93837.0,0.33407221]
[1735737123944,0.0002706,93838.0,93837.0,0.33407221]
[1735737124288,0.0002706,93838.0,93837.0,0.33807221]
[1735737124512,0.0012706,93838.0,93837.0,0.34707221]
[1735737129602,0.0011706,93838.0,93837.0,0.34707221]
[1735737130939,0.2143036,93838.0,93837.0,0.11717221]
[1735737131162,0.2143036,93838.0,93837.0,0.01318589]
[1735737131783,0.2133036,93838.0,93837.0,0.00418589]
[1735737131984,0.2133036,93838.0,93837.0,0.00018589]
[1735737132193,0.2133036,93838.0,93837.0,0.00118589]
[1735737132398,0.2133036,93838.0,93837.0,0.20417221]
[1735737132600,0.2134036,93838.0,93837.0,0.20417221]
[1735737132806,0.2134036,93838.0,93837.0,0.20517221]
[1735737133139,0.2134036,93838.0,93837.0,0.00118589]
[1735737137034,0.2134036,93838.0,93837.0,0.00018589]
[1735737140192,0.19018198,93842.0,93837.0,0.00018589]
[1735737140944,0.213128,93840.0,93839.0,0.1]
[1735737141143,0.15,93851.0,93842.0,0.1]
[1735737141464,0.23945091,93852.0,93843.0,0.20398632]
[1735737141659,0.21312,93844.0,93843.0,0.20398632]
[1735737142711,0.213115,93846.0,93845.0,0.1]
[1735737142913,0.213115,93846.0,93845.0,0.20398632]
[1735737152438,0.2132856,93846.0,93845.0,0.20398632]
[1735737153144,0.213128,93840.0,93837.0,0.07848589]
[1735737153354,0.15,93839.0,93837.0,0.00018589]
[1735737154398,0.15,93839.0,93837.0,0.00318589]
[1735737154601,0.15,93839.0,93837.0,0.00018589]
[1735737154874,0.363133,93838.0,93837.0,0.00018589]
[1735737168183,0.363033,93838.0,93837.0,0.00018589]
[1735737168395,0.367033,93838.0,93837.0,0.00018589]
[1735737168616,0.367033,93838.0,93837.0,8.9e-07]
[1735737168819,0.445133,93838.0,93837.0,8.9e-07]
[1735737171885,0.367033,93838.0,93837.0,8.9e-07]
[1735737175785,0.367033,93838.0,93837.0,8.619e-05]
[1735737181346,0.366033,93838.0,93837.0,8.619e-05]
[1735737181553,0.364033,93838.0,93837.0,8.619e-05]
[1735737183078,0.363033,93838.0,93837.0,8.619e-05]
[1735737184021,0.60232995,93838.0,93837.0,8.619e-05]
[1735737185444,0.363033,93838.0,93837.0,8.619e-05]
[1735737189966,0.3632036,93838.0,93837.0,8.619e-05]
[1735737190350,0.3632036,93838.0,93837.0,0.27997251]
[1735737190555,0.3632036,93838.0,93837.0,0.30798976]
[1735737190753,0.3632036,93838.0,93837.0,0.35708976]
[1735737190965,0.3632036,93838.0,93837.0,0.32907251]
[1735737191524,0.3672036,93838.0,93837.0,0.32907251]
[1735737192095,0.3672036,93838.0,93837.0,0.33307251]
[1735737193455,0.3672036,93838.0,93837.0,0.33407251]
[1735737193682,0.3672036,93838.0,93837.0,0.33397251]
[1735737197375,0.2172036,93838.0,93837.0,0.33397251]
[1735737201453,0.21709294,93838.0,93837.0,0.33397251]
[1735737202291,0.21709294,93838.0,93837.0,0.33405781]
[1735737224633,0.21709294,93838.0,93837.0,0.28495781]
[1735737226440,0.0001706,93842.0,93837.0,0.28495781]
[1735737226636,0.213133,93838.0,93837.0,0.28495781]
[1735737227321,0.213133,93838.0,93837.0,0.28395781]
[1735737227524,0.213133,93838.0,93837.0,0.28095781]
[1735737227919,0.213133,93838.0,93837.0,0.28295781]
[1735737228140,0.213133,93838.0,93837.0,0.27995781]
[1735737228397,0.213133,93838.0,93837.0,0.28095781]
[1735737228611,0.213133,93838.0,93837.0,0.28495781]
[1735737229137,0.213033,93838.0,93837.0,0.28495781]
[1735737241475,0.213033,93838.0,93837.0,0.20905781]
[1735737241835,0.212933,93838.0,93837.0,0.20905781]
[1735737245995,0.687224,93838.0,93837.0,0.0050853]
[1735737246197,1.31561374,93838.0,93837.0,0.0050853]
[1735737246406,1.87236074,93838.0,93837.0,0.0050853]
[1735737246626,1.78543074,93838.0,93837.0,0.0050853]
[1735737246800,1.49463274,93838.0,93837.0,8.53e-05]
[1735737247000,1.076166,93838.0,93837.0,8.53e-05]
[1735737247204,1.05691,93838.0,93837.0,8.53e-05]
[1735737247406,1.037085,93838.0,93837.0,8.53e-05]
[1735737247602,1.039085,93838.0,93837.0,8.53e-05]
[1735737247988,1.041085,93838.0,93837.0,8.53e-05]
[1735737248416,1.036085,93838.0,93837.0,8.53e-05]
[1735737248620,1.032085,93838.0,93837.0,8.53e-05]
[1735737248827,1.0322556,93838.0,93837.0,8.53e-05]
[1735737249432,1.0302556,93838.0,93837.0,8.53e-05]
[1735737249826,1.0322556,93838.0,93837.0,8.53e-05]
[1735737250045,1.0362556,93838.0,93837.0,8.53e-05]
[1735737250529,0.9580396,93838.0,93837.0,8.53e-05]
[1735737257140,0.9582396,93838.0,93837.0,8.53e-05]
[1735737258159,0.9542396,93838.0,93837.0,8.53e-05]
[1735737258561,0.9582396,93838.0,93837.0,8.53e-05]
[1735737258927,0.9562396,93838.0,93837.0,3e-07]
[1735737259133,0.52527244,93838.0,93837.0,3e-07]
[1735737259329,0.4995036,93838.0,93837.0,3e-07]
[1735737260064,0.7868447,93838.0,93837.0,3e-07]
[1735737261041,0.4995036,93838.0,93837.0,3e-07]
[1735737263645,0.15,93837.0,93831.0,3e-07]
[1735737263842,0.363146,93832.0,93831.0,3e-07]
[1735737264448,0.443846,93832.0,93831.0,3e-07]
[1735737265216,0.363155,93828.0,93827.0,5e-07]
[1735737266597,0.60157893,93828.0,93827.0,5e-07]
[1735737266954,0.60457893,93828.0,93827.0,5e-07]
[1735737267346,0.366155,93828.0,93827.0,5e-07]
[1735737267543,0.372155,93828.0,93827.0,0.0010005]
[1735737268341,0.366155,93828.0,93827.0,5e-07]
[1735737268556,0.744803,93828.0,93827.0,5e-07]
[1735737268783,0.365155,93828.0,93827.0,5e-07]
[1735737269194,0.366155,93828.0,93827.0,5e-07]
[1735737269614,0.365155,93828.0,93827.0,5e-07]
[1735737269987,0.363155,93828.0,93827.0,5e-07]
[1735737270190,0.366155,93828.0,93827.0,5e-07]
[1735737270571,0.363155,93828.0,93827.0,5e-07]
[1735737270793,0.366155,93828.0,93827.0,5e-07]
[1735737276510,0.366155,93828.0,93827.0,0.28438682]
[1735737277661,0.364155,93828.0,93827.0,0.28438682]
[1735737278687,0.363155,93828.0,93827.0,0.28438682]
[1735737279539,0.863155,93828.0,93827.0,0.28438682]
[1735737279744,0.863155,93828.0,93827.0,0.28538682]
[1735737280147,0.863155,93828.0,93827.0,0.28838682]
[1735737280880,0.713155,93828.0,93827.0,0.28838682]
[1735737281074,0.713155,93828.0,93827.0,0.33708682]
[1735737281776,0.863155,93828.0,93827.0,0.33708682]
[1735737282077,0.363155,93828.0,93827.0,0.33708682]
[1735737284386,0.3633256,93828.0,93827.0,0.33708682]
[1735737286965,0.3633256,93828.0,93827.0,0.23708682]
[1735737287171,0.3633256,93828.0,93827.0,0.18838682]
[1735737287393,0.3633256,93828.0,93827.0,0.28838682]
[1735737287587,0.3633256,93828.0,93827.0,0.18838682]
[1735737287840,0.3633256,93828.0,93827.0,0.10798682]
[1735737289355,0.3633256,93828.0,93827.0,0.0040005]
[1735737291099,0.3633256,93828.0,93827.0,0.0010005]
[1735737291924,0.3632256,93828.0,93827.0,0.0010005]
[1735737292878,0.3632256,93828.0,93827.0,5e-07]
[1735737296435,0.1501706,93828.0,93827.0,5e-07]
[1735737297736,0.3633256,93828.0,93827.0,5e-07]
[1735737308878,0.3594256,93828.0,93827.0,5e-07]
[1735737315872,0.3594256,93828.0,93827.0,0.0020005]
[1735737316068,0.6771746,93828.0,93827.0,0.0020005]
[1735737316267,0.6781746,93828.0,93827.0,5e-07]
[1735737316467,0.3604256,93828.0,93827.0,0.0020005]
[1735737316756,0.320953,93828.0,93827.0,0.0020005]
[1735737316972,0.608058,93831.0,93827.0,0.0020005]
[1735737317177,0.213155,93828.0,93827.0,0.0020005]
[1735737317356,0.213155,93828.0,93827.0,5e-07]
[1735737317729,0.213155,93828.0,93827.0,0.0020005]
[1735737318487,0.721323,93828.0,93827.0,0.0020005]
[1735737318667,0.799248,93828.0,93827.0,0.0020005]
[1735737318824,0.522149,93828.0,93827.0,5e-07]
[1735737319054,0.60225406,93828.0,93827.0,0.0764005]
[1735737319256,0.60425406,93828.0,93827.0,0.0764005]
[1735737319408,0.60225406,93828.0,93827.0,0.0764005]
[1735737319952,0.363155,93828.0,93827.0,0.0764005]
[1735737320144,0.3633256,93828.0,93827.0,0.0764005]
[1735737320341,0.3643256,93828.0,93827.0,0.0794005]
[1735737320557,0.3643256,93828.0,93827.0,0.18338682]
[1735737320762,0.0001706,93828.0,93827.0,0.30132687]
[1735737320938,0.0001706,93828.0,93827.0,0.28338682]
[1735737321139,0.0001706,93828.0,93827.0,0.28438682]
[1735737321679,0.0001706,93828.0,93827.0,0.28338682]
[1735737322031,0.0001706,93828.0,93827.0,0.28538682]
[1735737322596,0.0001706,93828.0,93827.0,0.28238682]
[1735737322802,0.0001706,93828.0,93827.0,0.28538682]
[1735737323209,0.0001706,93828.0,93827.0,0.28238682]
[1735737323419,0.0001706,93828.0,93827.0,0.28738682]
[1735737327571,5.85e-05,93828.0,93827.0,0.28738682]
[1735737328781,5.85e-05,93828.0,93827.0,0.3207755]
[1735737330035,0.213147,93832.0,93829.0,0.079]
[1735737330239,0.213147,93832.0,93830.0,0.10398632]
[1735737330442,0.213147,93832.0,93831.0,0.079]
[1735737330569,0.213147,93832.0,93831.0,0.18298632]
[1735737332013,0.213147,93832.0,93831.0,0.18398632]
[1735737332235,0.213147,93832.0,93831.0,0.28398632]
[1735737332917,0.213147,93832.0,93831.0,0.28698632]
[1735737336711,0.21355311,93838.0,93837.0,0.1]
[1735737336912,0.36355311,93838.0,93837.0,0.20398632]
[1735737337679,0.15042011,93838.0,93837.0,0.22698632]
[1735737337880,0.00042011,93838.0,93837.0,0.38489616]
[1735737338192,0.00042011,93838.0,93837.0,0.59803116]
[1735737338843,0.00042011,93838.0,93837.0,0.60103116]
[1735737339015,0.00142011,93838.0,93837.0,0.61003116]
[1735737339319,0.00042011,93838.0,93837.0,0.35978632]
[1735737339636,0.00142011,93838.0,93837.0,0.36878632]
[1735737340047,0.00142011,93838.0,93837.0,0.36578632]
[1735737340367,0.00242011,93838.0,93837.0,0.37278632]
[1735737342131,0.00242011,93838.0,93837.0,0.58592132]
[1735737342324,0.00242011,93838.0,93837.0,0.68582765]
[1735737342969,0.00242011,93838.0,93837.0,0.58592132]
[1735737346100,0.00242011,93838.0,93837.0,0.57892132]
[1735737346302,0.00142011,93838.0,93837.0,0.57892132]
[1735737346519,0.00142011,93838.0,93837.0,0.67692132]
[1735737346944,0.00242011,93838.0,93837.0,0.68592132]
[1735737347362,0.00242011,93838.0,93837.0,0.88582765]
[1735737348808,0.00242011,93838.0,93837.0,0.78592132]
[1735737366451,0.213055,93873.0,93837.0,0.78592132]
[1735737366670,0.213047,93876.0,93875.0,0.1]
[1735737366880,0.36309992,93876.0,93875.0,0.20398632]
[1735737368346,0.36309992,93876.0,93875.0,0.20798632]
[1735737368548,0.36309992,93876.0,93875.0,0.20398632]
[1735737369028,0.36309992,93876.0,93875.0,0.20898632]
[1735737369493,0.36309992,93876.0,93875.0,0.20998632]
[1735737370919,5.292e-05,93876.0,93875.0,0.23298632]
[1735737372143,5.292e-05,93876.0,93875.0,0.26452495]
[1735737372352,5.292e-05,93876.0,93875.0,0.23298632]
[1735737376979,5.292e-05,93876.0,93875.0,0.20998632]
[1735737377179,0.00022352,93876.0,93875.0,0.20998632]
[1735737380395,0.00022352,93876.0,93875.0,0.23298632]
[1735737381665,0.00022352,93876.0,93875.0,0.31608632]
[1735737381936,0.00022352,93876.0,93875.0,0.36266495]
[1735737382549,0.00022352,93876.0,93875.0,0.36166495]
[1735737382753,0.00022352,93876.0,93875.0,0.35766495]
[1735737383167,0.00022352,93876.0,93875.0,0.36666495]
[1735737383366,0.00022352,93876.0,93875.0,0.36566495]
[1735737383633,0.00022352,93876.0,93875.0,0.37066495]
[1735737384202,0.00022352,93876.0,93875.0,0.32408632]
[1735737388596,0.00022352,93876.0,93875.0,0.21798632]
[1735737389097,0.07752352,93876.0,93875.0,0.21798632]
[1735737389866,0.07752352,93876.0,93875.0,0.21298632]
[1735737390926,0.07752352,93876.0,93875.0,0.20398632]
[1735737391072,0.07752352,93876.0,93875.0,0.20998632]
[1735737391477,0.07752352,93876.0,93875.0,0.20498632]
[1735737391724,0.07752352,93876.0,93875.0,0.20898632]
[1735737391931,0.07752352,93876.0,93875.0,0.20998632]
[1735737392892,0.07752352,93876.0,93875.0,0.20898632]
[1735737393101,0.07752352,93876.0,93875.0,0.20998632]
[1735737393943,0.00022352,93876.0,93875.0,0.20498632]
[1735737394102,0.00022352,93876.0,93875.0,0.20998632]
[1735737400461,0.00022352,93876.0,93875.0,0.20498632]
[1735737400830,0.00022352,93876.0,93875.0,0.21098632]
[1735737401062,0.00022352,93876.0,93875.0,0.20998632]
[1735737401508,0.00022352,93876.0,93875.0,0.21098632]
[1735737407164,0.00022352,93876.0,93875.0,0.20498632]
[1735737407369,0.00022352,93876.0,93875.0,0.20998632]
[1735737407717,0.00022352,93876.0,93875.0,0.20898632]
[1735737408083,0.00022352,93876.0,93875.0,0.20498632]
[1735737408472,0.00022352,93876.0,93875.0,0.20998632]
[1735737409307,0.00022352,93876.0,93875.0,0.20498632]